[Event "Titled Tuesday Blitz August 09 Early 2022"]
[White "Leve, Nitai"]
[Black "Jiganchine, Roman"]
[WhiteFideId "2006898"]
[BlackFideId "2603667"]
[WhiteElo "2144"]
[BlackElo "2300"]
[Result "1/2-1/2"]
[Round "05"]
[TimeControl "180+1"]
[Date "2022.08.09"]
[WhiteClock "0:00:02"]
[BlackClock "0:00:07"]

1. e4 {[%clk 0:03:00]}  c6 {[%clk 0:02:59]} 2. d4 {[%clk 0:02:56]}  d5 {[%clk 0:02:59]} 3. e5 {[%clk 0:02:56]}  Bf5 {[%clk 0:02:58]} 4. h4 {[%clk 0:02:56]}  h5 {[%clk 0:02:57]} 5. Bd3 {[%clk 0:02:57]}  Bxd3 {[%clk 0:02:47]} 6. Qxd3 {[%clk 0:02:57]}  Qa5+ {[%clk 0:02:44]} 7. Nd2 {[%clk 0:02:48]}  e6 {[%clk 0:02:43]} 8. Nf3 {[%clk 0:02:47]}  Ne7 {[%clk 0:02:35]} 9. O-O {[%clk 0:02:38]}  Nf5 {[%clk 0:02:33]} 10. c4 {[%clk 0:02:39]}  Be7 {[%clk 0:02:28]} 11. a3 {[%clk 0:02:27]}  O-O {[%clk 0:02:18]} 12. b4 {[%clk 0:02:25]}  Qa6 {[%clk 0:02:18]} 13. Qc2 {[%clk 0:02:16]}  Nd7 {[%clk 0:02:08]} 14. Rb1 {[%clk 0:02:03]}  Rac8 {[%clk 0:02:05]} 15. Re1 {[%clk 0:02:01]}  Nxh4 {[%clk 0:01:59]} 16. Nxh4 {[%clk 0:01:56]}  Bxh4 {[%clk 0:01:58]} 17. Qd1 {[%clk 0:01:56]}  g6 {[%clk 0:01:56]} 18. Nf3 {[%clk 0:01:55]}  Be7 {[%clk 0:01:54]} 19. c5 {[%clk 0:01:56]}  b6 {[%clk 0:01:48]} 20. Rb3 {[%clk 0:01:53]}  bxc5 {[%clk 0:01:36]} 21. dxc5 {[%clk 0:01:40]}  Qc4 {[%clk 0:01:35]} 22. Bg5 {[%clk 0:01:30]}  Bxg5 {[%clk 0:01:22]} 23. Nxg5 {[%clk 0:01:31]}  Qg4 {[%clk 0:01:22]} 24. Qxg4 {[%clk 0:01:25]}  hxg4 {[%clk 0:01:22]} 25. Rg3 {[%clk 0:01:26]}  a5 {[%clk 0:01:15]} 26. Rxg4 {[%clk 0:01:24]}  Rb8 {[%clk 0:01:11]} 27. Re3 {[%clk 0:01:15]}  Kg7 {[%clk 0:01:04]} 28. Rh4 {[%clk 0:00:59]}  Rh8 {[%clk 0:01:02]} 29. Rxh8 {[%clk 0:00:59]}  Rxh8 {[%clk 0:00:59]} 30. bxa5 {[%clk 0:00:59]}  Nxc5 {[%clk 0:00:56]} 31. Rc3 {[%clk 0:00:56]}  Nd7 {[%clk 0:00:55]} 32. Rxc6 {[%clk 0:00:56]}  Nxe5 {[%clk 0:00:55]} 33. Rc7 {[%clk 0:00:54]}  Kf6 {[%clk 0:00:25]} 34. f4 {[%clk 0:00:53]}  Ra8 {[%clk 0:00:24]} 35. Nh7+ {[%clk 0:00:30]}  Kg7 {[%clk 0:00:23]} 36. Ng5 {[%clk 0:00:30]}  Kf6 {[%clk 0:00:22]} 37. Nh7+ {[%clk 0:00:30]}  Kg7 {[%clk 0:00:22]} 38. fxe5 {[%clk 0:00:31]}  Kxh7 {[%clk 0:00:22]} 39. Rxf7+ {[%clk 0:00:31]}  Kh6 {[%clk 0:00:22]} 40. Re7 {[%clk 0:00:29]}  Rxa5 {[%clk 0:00:20]} 41. Rxe6 {[%clk 0:00:29]}  Rxa3 {[%clk 0:00:21]} 42. Rd6 {[%clk 0:00:29]}  Kg5 {[%clk 0:00:17]} 43. Rxd5 {[%clk 0:00:26]}  Kf5 {[%clk 0:00:17]} 44. Kf2 {[%clk 0:00:26]}  g5 {[%clk 0:00:16]} 45. e6+ {[%clk 0:00:23]}  Kxe6 {[%clk 0:00:16]} 46. Rxg5 {[%clk 0:00:23]}  Kf6 {[%clk 0:00:15]} 47. Rb5 {[%clk 0:00:23]}  Rc3 {[%clk 0:00:15]} 48. Rb4 {[%clk 0:00:21]}  Ra3 {[%clk 0:00:15]} 49. Kg1 {[%clk 0:00:22]}  Kg5 {[%clk 0:00:15]} 50. Kh2 {[%clk 0:00:22]}  Rc3 {[%clk 0:00:15]} 51. g3 {[%clk 0:00:23]}  Rc1 {[%clk 0:00:13]} 52. Kh3 {[%clk 0:00:21]}  Rh1+ {[%clk 0:00:12]} 53. Kg2 {[%clk 0:00:22]}  Rc1 {[%clk 0:00:13]} 54. Rb3 {[%clk 0:00:21]}  Rd1 {[%clk 0:00:13]} 55. Kf3 {[%clk 0:00:22]}  Rf1+ {[%clk 0:00:12]} 56. Kg2 {[%clk 0:00:21]}  Rc1 {[%clk 0:00:13]} 57. Rd3 {[%clk 0:00:20]}  Rb1 {[%clk 0:00:11]} 58. Rd2 {[%clk 0:00:19]}  Rc1 {[%clk 0:00:11]} 59. Ra2 {[%clk 0:00:18]}  Rb1 {[%clk 0:00:11]} 60. Ra5+ {[%clk 0:00:18]}  Kg4 {[%clk 0:00:10]} 61. Ra4+ {[%clk 0:00:19]}  Kg5 {[%clk 0:00:10]} 62. Ra2 {[%clk 0:00:17]}  Kg4 {[%clk 0:00:10]} 63. Rf2 {[%clk 0:00:16]}  Rc1 {[%clk 0:00:10]} 64. Rf4+ {[%clk 0:00:16]}  Kg5 {[%clk 0:00:10]} 65. Kh3 {[%clk 0:00:16]}  Rh1+ {[%clk 0:00:10]} 66. Kg2 {[%clk 0:00:17]}  Rc1 {[%clk 0:00:10]} 67. Rf8 {[%clk 0:00:16]}  Rb1 {[%clk 0:00:09]} 68. Rf2 {[%clk 0:00:15]}  Rc1 {[%clk 0:00:09]} 69. Rd2 {[%clk 0:00:15]}  Rb1 {[%clk 0:00:09]} 70. Kf3 {[%clk 0:00:14]}  Rb3+ {[%clk 0:00:09]} 71. Kg2 {[%clk 0:00:12]}  Rb1 {[%clk 0:00:09]} 72. Rd3 {[%clk 0:00:13]}  Rc1 {[%clk 0:00:09]} 73. Kf3 {[%clk 0:00:07]}  Rf1+ {[%clk 0:00:09]} 74. Ke2 {[%clk 0:00:05]}  Rc1 {[%clk 0:00:09]} 75. Rf3 {[%clk 0:00:05]}  Rg1 {[%clk 0:00:09]} 76. Kf2 {[%clk 0:00:04]}  Rc1 {[%clk 0:00:09]} 77. Ra3 {[%clk 0:00:05]}  Rb1 {[%clk 0:00:08]} 78. Kg2 {[%clk 0:00:04]}  Rc1 {[%clk 0:00:07]} 79. Ra4 {[%clk 0:00:02]}  Rb1 {[%clk 0:00:07]} 80. Rf4 {[%clk 0:00:02]}  Rc1 {[%clk 0:00:07]} 1/2-1/2


[Site "https://www.chess.com"]

[Event "Titled Tuesday Blitz August 09 Early 2022"]
[White "Maksimovic, Bojan"]
[Black "Melikyan, Gnel"]
[WhiteFideId "14408120"]
[BlackFideId "54109990"]
[WhiteElo "2447"]
[BlackElo "1772"]
[Result "1-0"]
[Round "05"]
[TimeControl "180+1"]
[Date "2022.08.09"]
[WhiteClock "0:01:50"]
[BlackClock "0:01:49"]

1. e4 {[%clk 0:03:00]}  e5 {[%clk 0:02:59]} 2. Nf3 {[%clk 0:03:01]}  Nc6 {[%clk 0:02:59]} 3. Bb5 {[%clk 0:03:01]}  Nf6 {[%clk 0:02:58]} 4. O-O {[%clk 0:03:01]}  Nxe4 {[%clk 0:02:58]} 5. Re1 {[%clk 0:03:02]}  Nd6 {[%clk 0:02:58]} 6. Nxe5 {[%clk 0:03:03]}  Be7 {[%clk 0:02:57]} 7. Bf1 {[%clk 0:03:03]}  Nxe5 {[%clk 0:02:56]} 8. Rxe5 {[%clk 0:03:04]}  O-O {[%clk 0:02:56]} 9. d4 {[%clk 0:03:04]}  Bf6 {[%clk 0:02:56]} 10. Re1 {[%clk 0:03:04]}  Nf5 {[%clk 0:02:56]} 11. c3 {[%clk 0:03:05]}  d5 {[%clk 0:02:56]} 12. Nd2 {[%clk 0:03:05]}  c6 {[%clk 0:02:56]} 13. a4 {[%clk 0:03:01]}  Nd6 {[%clk 0:02:47]} 14. a5 {[%clk 0:03:01]}  Bf5 {[%clk 0:02:45]} 15. a6 {[%clk 0:02:57]}  b6 {[%clk 0:02:45]} 16. Nf3 {[%clk 0:02:58]}  Qd7 {[%clk 0:02:37]} 17. Ne5 {[%clk 0:02:56]}  Bxe5 {[%clk 0:02:36]} 18. dxe5 {[%clk 0:02:56]}  Nc4 {[%clk 0:02:37]} 19. b3 {[%clk 0:02:53]}  Na5 {[%clk 0:02:32]} 20. Ba3 {[%clk 0:02:41]}  c5 {[%clk 0:02:14]} 21. Bxc5 {[%clk 0:02:30]}  bxc5 {[%clk 0:02:09]} 22. Rxa5 {[%clk 0:02:30]}  Rfc8 {[%clk 0:02:08]} 23. b4 {[%clk 0:02:16]}  cxb4 {[%clk 0:02:01]} 24. Rxd5 {[%clk 0:01:58]}  Qe7 {[%clk 0:01:58]} 25. cxb4 {[%clk 0:01:59]}  Qxb4 {[%clk 0:01:56]} 26. h3 {[%clk 0:01:59]}  Be6 {[%clk 0:01:52]} 27. Rd6 {[%clk 0:01:58]}  Bc4 {[%clk 0:01:52]} 28. Re4 {[%clk 0:01:54]}  Qb3 {[%clk 0:01:49]} 29. Bxc4 {[%clk 0:01:50]} 1-0


[Site "https://www.chess.com"]

[Event "Titled Tuesday Blitz August 09 Early 2022"]
[White "Malyi, Viacheslav"]
[Black "Skliarov, Viktor"]
[WhiteFideId "14123983"]
[BlackFideId "14106736"]
[WhiteElo "2190"]
[BlackElo "2257"]
[Result "1-0"]
[Round "05"]
[TimeControl "180+1"]
[Date "2022.08.09"]
[WhiteClock "0:00:05"]
[BlackClock "0:00:08"]

1. d4 {[%clk 0:03:00]}  Nf6 {[%clk 0:02:59]} 2. Bg5 {[%clk 0:03:01]}  Ne4 {[%clk 0:02:58]} 3. h4 {[%clk 0:03:01]}  h6 {[%clk 0:02:53]} 4. Bf4 {[%clk 0:03:00]}  c5 {[%clk 0:02:54]} 5. dxc5 {[%clk 0:02:57]}  Qa5+ {[%clk 0:02:48]} 6. Nd2 {[%clk 0:02:55]}  Qxc5 {[%clk 0:02:25]} 7. Nxe4 {[%clk 0:02:46]}  Qb4+ {[%clk 0:02:25]} 8. Qd2 {[%clk 0:02:41]}  Qxe4 {[%clk 0:02:25]} 9. f3 {[%clk 0:02:41]}  Qa4 {[%clk 0:02:12]} 10. e4 {[%clk 0:02:39]}  Nc6 {[%clk 0:02:08]} 11. Ne2 {[%clk 0:02:23]}  d6 {[%clk 0:02:00]} 12. Nc3 {[%clk 0:02:21]}  Qa5 {[%clk 0:02:00]} 13. O-O-O {[%clk 0:02:15]}  Be6 {[%clk 0:01:53]} 14. a3 {[%clk 0:02:13]}  g6 {[%clk 0:01:31]} 15. Nd5 {[%clk 0:02:07]}  Qxd2+ {[%clk 0:01:30]} 16. Rxd2 {[%clk 0:02:07]}  Rc8 {[%clk 0:01:31]} 17. Kb1 {[%clk 0:01:55]}  Bg7 {[%clk 0:01:30]} 18. Nb4 {[%clk 0:01:40]}  Nxb4 {[%clk 0:01:05]} 19. axb4 {[%clk 0:01:41]}  Bc4 {[%clk 0:01:05]} 20. Be3 {[%clk 0:01:27]}  a6 {[%clk 0:00:48]} 21. Bd4 {[%clk 0:01:25]}  Bxd4 {[%clk 0:00:37]} 22. Rxd4 {[%clk 0:01:26]}  Bxf1 {[%clk 0:00:34]} 23. Rxf1 {[%clk 0:01:27]}  g5 {[%clk 0:00:34]} 24. Rh1 {[%clk 0:01:24]}  Kd7 {[%clk 0:00:19]} 25. c3 {[%clk 0:01:19]}  Ke6 {[%clk 0:00:17]} 26. Rd5 {[%clk 0:01:17]}  f6 {[%clk 0:00:17]} 27. Kc2 {[%clk 0:01:16]}  Rcg8 {[%clk 0:00:16]} 28. g4 {[%clk 0:00:57]}  h5 {[%clk 0:00:14]} 29. hxg5 {[%clk 0:00:55]}  hxg4 {[%clk 0:00:15]} 30. Rxh8 {[%clk 0:00:54]}  Rxh8 {[%clk 0:00:15]} 31. fxg4 {[%clk 0:00:54]}  Rg8 {[%clk 0:00:14]} 32. gxf6 {[%clk 0:00:46]}  exf6 {[%clk 0:00:14]} 33. b5 {[%clk 0:00:45]}  Rxg4 {[%clk 0:00:13]} 34. bxa6 {[%clk 0:00:43]}  bxa6 {[%clk 0:00:14]} 35. Kd3 {[%clk 0:00:40]}  Rg2 {[%clk 0:00:13]} 36. b4 {[%clk 0:00:38]}  Ra2 {[%clk 0:00:13]} 37. Rh5 {[%clk 0:00:36]}  Ra1 {[%clk 0:00:12]} 38. Kc4 {[%clk 0:00:30]}  Ra2 {[%clk 0:00:10]} 39. Rh8 {[%clk 0:00:27]}  Re2 {[%clk 0:00:09]} 40. Kd3 {[%clk 0:00:26]}  Ra2 {[%clk 0:00:09]} 41. Re8+ {[%clk 0:00:27]}  Kd7 {[%clk 0:00:09]} 42. Ra8 {[%clk 0:00:27]}  Ra4 {[%clk 0:00:08]} 43. Kd4 {[%clk 0:00:25]}  Ke6 {[%clk 0:00:06]} 44. Re8+ {[%clk 0:00:19]}  Kd7 {[%clk 0:00:06]} 45. Ra8 {[%clk 0:00:19]}  Ke6 {[%clk 0:00:06]} 46. Ra7 {[%clk 0:00:19]}  Ra1 {[%clk 0:00:05]} 47. Kc4 {[%clk 0:00:15]}  Ra2 {[%clk 0:00:04]} 48. Ra8 {[%clk 0:00:14]}  Ra1 {[%clk 0:00:04]} 49. Re8+ {[%clk 0:00:07]}  Kd7 {[%clk 0:00:04]} 50. Ra8 {[%clk 0:00:07]}  Ke6 {[%clk 0:00:05]} 51. Ra7 {[%clk 0:00:06]}  Ra2 {[%clk 0:00:05]} 52. Kd3 {[%clk 0:00:06]}  Ra1 {[%clk 0:00:05]} 53. Ra8 {[%clk 0:00:07]}  Kd7 {[%clk 0:00:05]} 54. Rh8 {[%clk 0:00:06]}  Ke6 {[%clk 0:00:05]} 55. Rh7 {[%clk 0:00:07]}  Ra2 {[%clk 0:00:04]} 56. Rb7 {[%clk 0:00:07]}  Ra1 {[%clk 0:00:04]} 57. Ra7 {[%clk 0:00:07]}  Ra2 {[%clk 0:00:03]} 58. b5 {[%clk 0:00:08]}  Ra5 {[%clk 0:00:03]} 59. bxa6 {[%clk 0:00:04]}  d5 {[%clk 0:00:04]} 60. exd5+ {[%clk 0:00:03]}  Kxd5 {[%clk 0:00:04]} 61. Ra8 {[%clk 0:00:04]}  Kc6 {[%clk 0:00:04]} 62. Rf8 {[%clk 0:00:04]}  f5 {[%clk 0:00:02]} 63. a7 {[%clk 0:00:03]}  Rxa7 {[%clk 0:00:01]} 64. Rf6+ {[%clk 0:00:04]}  Kb7 {[%clk 0:00:01]} 65. Rxf5 {[%clk 0:00:04]}  Kb8 {[%clk 0:00:02]} 66. Rf8+ {[%clk 0:00:05]}  Kb7 {[%clk 0:00:02]} 67. Rf7+ {[%clk 0:00:05]}  Kb6 {[%clk 0:00:03]} 68. Rxa7 {[%clk 0:00:06]}  Kxa7 {[%clk 0:00:04]} 69. Kc4 {[%clk 0:00:07]}  Kb6 {[%clk 0:00:04]} 70. Kd5 {[%clk 0:00:07]}  Kb7 {[%clk 0:00:04]} 71. Kd6 {[%clk 0:00:06]}  Kc8 {[%clk 0:00:05]} 72. Kc6 {[%clk 0:00:07]}  Kb8 {[%clk 0:00:06]} 73. c4 {[%clk 0:00:07]}  Kc8 {[%clk 0:00:06]} 74. c5 {[%clk 0:00:07]}  Kb8 {[%clk 0:00:07]} 75. Kd6 {[%clk 0:00:07]}  Kc8 {[%clk 0:00:07]} 76. Kc6 {[%clk 0:00:04]}  Kd8 {[%clk 0:00:07]} 77. Kb7 {[%clk 0:00:05]}  Kd7 {[%clk 0:00:08]} 78. c6+ {[%clk 0:00:05]} 1-0


[Site "https://www.chess.com"]

[Event "Titled Tuesday Blitz August 09 Early 2022"]
[White "Martin Barcelo, Carles"]
[Black "Adewumi, Tanitoluwa"]
[WhiteFideId "24561444"]
[BlackFideId "30966396"]
[WhiteElo "1922"]
[BlackElo "2508"]
[Result "0-1"]
[Round "05"]
[TimeControl "180+1"]
[Date "2022.08.09"]
[WhiteClock "0:00:07"]
[BlackClock "0:00:04"]

1. e4 {[%clk 0:03:00]}  c5 {[%clk 0:02:54]} 2. Nf3 {[%clk 0:03:00]}  e6 {[%clk 0:02:52]} 3. g3 {[%clk 0:02:57]}  Nc6 {[%clk 0:02:48]} 4. Bg2 {[%clk 0:02:58]}  Nf6 {[%clk 0:02:47]} 5. Qe2 {[%clk 0:02:57]}  e5 {[%clk 0:02:47]} 6. O-O {[%clk 0:02:57]}  Be7 {[%clk 0:02:44]} 7. Nc3 {[%clk 0:02:56]}  O-O {[%clk 0:02:43]} 8. Nd5 {[%clk 0:02:57]}  Re8 {[%clk 0:02:42]} 9. d3 {[%clk 0:02:43]}  d6 {[%clk 0:02:31]} 10. c3 {[%clk 0:02:32]}  Be6 {[%clk 0:01:43]} 11. Nd2 {[%clk 0:02:32]}  Bf8 {[%clk 0:01:40]} 12. a4 {[%clk 0:02:28]}  Bxd5 {[%clk 0:01:36]} 13. exd5 {[%clk 0:02:28]}  Ne7 {[%clk 0:01:37]} 14. c4 {[%clk 0:02:09]}  Nf5 {[%clk 0:01:33]} 15. Ne4 {[%clk 0:02:03]}  Nd4 {[%clk 0:01:31]} 16. Qd1 {[%clk 0:02:03]}  Nxe4 {[%clk 0:01:02]} 17. Bxe4 {[%clk 0:02:03]}  g6 {[%clk 0:00:57]} 18. Be3 {[%clk 0:02:02]}  Bg7 {[%clk 0:00:56]} 19. Bxd4 {[%clk 0:01:54]}  cxd4 {[%clk 0:00:56]} 20. Bg2 {[%clk 0:01:44]}  f5 {[%clk 0:00:54]} 21. Re1 {[%clk 0:01:44]}  a5 {[%clk 0:00:51]} 22. Qb3 {[%clk 0:01:43]}  Qc7 {[%clk 0:00:32]} 23. Qc2 {[%clk 0:01:40]}  Re7 {[%clk 0:00:25]} 24. Ra3 {[%clk 0:01:41]}  Rae8 {[%clk 0:00:20]} 25. Rb3 {[%clk 0:01:40]}  Qd7 {[%clk 0:00:12]} 26. Ra3 {[%clk 0:01:39]}  e4 {[%clk 0:00:10]} 27. dxe4 {[%clk 0:01:33]}  fxe4 {[%clk 0:00:11]} 28. Rxe4 {[%clk 0:01:33]}  Rxe4 {[%clk 0:00:11]} 29. Bxe4 {[%clk 0:01:34]}  Qg4 {[%clk 0:00:11]} 30. f3 {[%clk 0:01:31]}  Qh3 {[%clk 0:00:10]} 31. Qg2 {[%clk 0:01:29]}  Qh6 {[%clk 0:00:09]} 32. Ra1 {[%clk 0:01:21]}  Qe3+ {[%clk 0:00:08]} 33. Qf2 {[%clk 0:01:21]}  Qb3 {[%clk 0:00:07]} 34. Qe2 {[%clk 0:01:15]}  Bh6 {[%clk 0:00:06]} 35. Ra3 {[%clk 0:01:12]}  Be3+ {[%clk 0:00:03]} 36. Kg2 {[%clk 0:01:12]}  Qb4 {[%clk 0:00:04]} 37. Qc2 {[%clk 0:01:05]}  Qe1 {[%clk 0:00:03]} 38. Qb1 {[%clk 0:01:01]}  Qe2+ {[%clk 0:00:02]} 39. Kh1 {[%clk 0:01:00]}  Re5 {[%clk 0:00:03]} 40. b3 {[%clk 0:00:26]}  Qf2 {[%clk 0:00:03]} 41. Ra2 {[%clk 0:00:22]}  Bd2 {[%clk 0:00:03]} 42. Qg1 {[%clk 0:00:21]}  Qxg1+ {[%clk 0:00:03]} 43. Kxg1 {[%clk 0:00:22]}  Be3+ {[%clk 0:00:03]} 44. Kf1 {[%clk 0:00:22]}  h5 {[%clk 0:00:04]} 45. h3 {[%clk 0:00:21]}  Kg7 {[%clk 0:00:04]} 46. Ke2 {[%clk 0:00:21]}  b6 {[%clk 0:00:05]} 47. Kd3 {[%clk 0:00:22]}  Kf6 {[%clk 0:00:05]} 48. Rg2 {[%clk 0:00:22]}  g5 {[%clk 0:00:06]} 49. g4 {[%clk 0:00:22]}  h4 {[%clk 0:00:05]} 50. Re2 {[%clk 0:00:21]}  Re8 {[%clk 0:00:05]} 51. Re1 {[%clk 0:00:21]}  Ke5 {[%clk 0:00:06]} 52. Rh1 {[%clk 0:00:14]}  Kf4 {[%clk 0:00:06]} 53. Ke2 {[%clk 0:00:13]}  Kg3 {[%clk 0:00:06]} 54. Kf1 {[%clk 0:00:13]}  Rf8 {[%clk 0:00:03]} 55. Ke2 {[%clk 0:00:10]}  Kg2 {[%clk 0:00:03]} 56. Rb1 {[%clk 0:00:10]}  Kxh3 {[%clk 0:00:03]} 57. b4 {[%clk 0:00:08]}  axb4 {[%clk 0:00:03]} 58. Rxb4 {[%clk 0:00:08]}  Bg1 {[%clk 0:00:03]} 59. Rxb6 {[%clk 0:00:08]}  d3+ {[%clk 0:00:03]} 60. Bxd3 {[%clk 0:00:07]}  Bxb6 {[%clk 0:00:04]} 0-1


[Site "https://www.chess.com"]

[Event "Titled Tuesday Blitz August 09 Early 2022"]
[White "Matveeva, Olga"]
[Black "Filippova, Margarita"]
[WhiteFideId "24107018"]
[BlackFideId "34199680"]
[WhiteElo "2052"]
[BlackElo "1734"]
[Result "0-1"]
[Round "05"]
[TimeControl "180+1"]
[Date "2022.08.09"]
[WhiteClock "0:00:01"]
[BlackClock "0:00:24"]

1. d4 {[%clk 0:02:59]}  Nf6 {[%clk 0:02:57]} 2. c4 {[%clk 0:02:58]}  e6 {[%clk 0:02:57]} 3. g3 {[%clk 0:02:58]}  Bb4+ {[%clk 0:02:57]} 4. Bd2 {[%clk 0:02:58]}  Qe7 {[%clk 0:02:58]} 5. Nf3 {[%clk 0:02:57]}  Nc6 {[%clk 0:02:56]} 6. Nc3 {[%clk 0:02:56]}  O-O {[%clk 0:02:55]} 7. Bg2 {[%clk 0:02:56]}  Bxc3 {[%clk 0:02:56]} 8. Bxc3 {[%clk 0:02:55]}  Ne4 {[%clk 0:02:56]} 9. Rc1 {[%clk 0:02:56]}  Nxc3 {[%clk 0:02:56]} 10. Rxc3 {[%clk 0:02:57]}  d6 {[%clk 0:02:55]} 11. d5 {[%clk 0:02:52]}  Nd8 {[%clk 0:02:52]} 12. O-O {[%clk 0:02:51]}  e5 {[%clk 0:02:52]} 13. b4 {[%clk 0:02:50]}  f5 {[%clk 0:02:50]} 14. c5 {[%clk 0:02:47]}  Nf7 {[%clk 0:02:49]} 15. Qb3 {[%clk 0:02:42]}  e4 {[%clk 0:02:44]} 16. Nd4 {[%clk 0:02:39]}  Ne5 {[%clk 0:02:45]} 17. cxd6 {[%clk 0:02:29]}  cxd6 {[%clk 0:02:42]} 18. Rfc1 {[%clk 0:02:28]}  Bd7 {[%clk 0:02:37]} 19. Rc7 {[%clk 0:02:27]}  Rfc8 {[%clk 0:02:35]} 20. Ne6 {[%clk 0:02:23]}  f4 {[%clk 0:02:06]} 21. Nxf4 {[%clk 0:02:19]}  g5 {[%clk 0:01:47]} 22. Nh5 {[%clk 0:01:56]}  Qf7 {[%clk 0:01:33]} 23. Rxc8+ {[%clk 0:01:27]}  Rxc8 {[%clk 0:01:33]} 24. Rxc8+ {[%clk 0:01:27]}  Bxc8 {[%clk 0:01:33]} 25. Qc2 {[%clk 0:01:27]}  Bf5 {[%clk 0:01:27]} 26. Bxe4 {[%clk 0:01:05]}  Bxe4 {[%clk 0:01:26]} 27. Qxe4 {[%clk 0:01:06]}  Qxh5 {[%clk 0:01:26]} 28. Kg2 {[%clk 0:00:53]}  Qf7 {[%clk 0:01:24]} 29. f3 {[%clk 0:00:51]}  Nd7 {[%clk 0:01:23]} 30. a4 {[%clk 0:00:41]}  Nb6 {[%clk 0:01:15]} 31. Qg4 {[%clk 0:00:22]}  Nxd5 {[%clk 0:01:12]} 32. Qc8+ {[%clk 0:00:20]}  Kg7 {[%clk 0:01:11]} 33. b5 {[%clk 0:00:18]}  Ne3+ {[%clk 0:01:10]} 34. Kf2 {[%clk 0:00:18]}  Nf5 {[%clk 0:01:08]} 35. Qc3+ {[%clk 0:00:15]}  Qf6 {[%clk 0:01:06]} 36. Qc7+ {[%clk 0:00:14]}  Kg6 {[%clk 0:01:01]} 37. Qxb7 {[%clk 0:00:11]}  Qd4+ {[%clk 0:01:00]} 38. Kg2 {[%clk 0:00:09]}  Qe3 {[%clk 0:00:57]} 39. Qe4 {[%clk 0:00:06]}  Qxe4 {[%clk 0:00:55]} 40. fxe4 {[%clk 0:00:07]}  Nd4 {[%clk 0:00:55]} 41. Kf2 {[%clk 0:00:06]}  Nb3 {[%clk 0:00:54]} 42. Ke3 {[%clk 0:00:06]}  Kf6 {[%clk 0:00:54]} 43. Kd3 {[%clk 0:00:03]}  Nc5+ {[%clk 0:00:54]} 44. Kd4 {[%clk 0:00:02]}  Nxa4 {[%clk 0:00:54]} 45. Kd5 {[%clk 0:00:03]}  Nc3+ {[%clk 0:00:54]} 46. Kxd6 {[%clk 0:00:02]}  Nxb5+ {[%clk 0:00:54]} 47. Kd5 {[%clk 0:00:01]}  Nc3+ {[%clk 0:00:28]} 48. Kd4 {[%clk 0:00:01]}  Nxe2+ {[%clk 0:00:28]} 49. Ke3 {[%clk 0:00:01]}  Nc3 {[%clk 0:00:28]} 50. Kd3 {[%clk 0:00:01]}  Nb5 {[%clk 0:00:28]} 51. Kc4 {[%clk 0:00:01]}  Nc7 {[%clk 0:00:28]} 52. Kc5 {[%clk 0:00:01]}  Ne6+ {[%clk 0:00:28]} 53. Kd6 {[%clk 0:00:01]}  h5 {[%clk 0:00:24]} 0-1


[Site "https://www.chess.com"]

[Event "Titled Tuesday Blitz August 09 Early 2022"]
[White "Mitrabha, Guha"]
[Black "Drozdowski, Kacper"]
[WhiteFideId "5057000"]
[BlackFideId "1136720"]
[WhiteElo "2499"]
[BlackElo "2485"]
[Result "1/2-1/2"]
[Round "05"]
[TimeControl "180+1"]
[Date "2022.08.09"]
[WhiteClock "0:00:27"]
[BlackClock "0:00:34"]

1. d4 {[%clk 0:03:00]}  Nf6 {[%clk 0:02:59]} 2. Nf3 {[%clk 0:03:00]}  g6 {[%clk 0:03:00]} 3. g3 {[%clk 0:03:00]}  Bg7 {[%clk 0:03:00]} 4. Bg2 {[%clk 0:03:01]}  O-O {[%clk 0:03:00]} 5. O-O {[%clk 0:03:02]}  d6 {[%clk 0:03:01]} 6. b3 {[%clk 0:03:02]}  Nc6 {[%clk 0:03:00]} 7. Bb2 {[%clk 0:03:03]}  e5 {[%clk 0:03:00]} 8. dxe5 {[%clk 0:03:03]}  Ng4 {[%clk 0:03:00]} 9. Qc1 {[%clk 0:03:03]}  Ngxe5 {[%clk 0:02:59]} 10. c4 {[%clk 0:03:03]}  Bg4 {[%clk 0:02:58]} 11. Nc3 {[%clk 0:03:03]}  Nxf3+ {[%clk 0:02:55]} 12. exf3 {[%clk 0:03:02]}  Be6 {[%clk 0:02:55]} 13. f4 {[%clk 0:03:02]}  Re8 {[%clk 0:02:34]} 14. Qd2 {[%clk 0:02:59]}  Rb8 {[%clk 0:02:28]} 15. Rfe1 {[%clk 0:02:57]}  Nd4 {[%clk 0:02:22]} 16. Re4 {[%clk 0:02:40]}  c5 {[%clk 0:02:19]} 17. Rae1 {[%clk 0:02:39]}  Qd7 {[%clk 0:02:19]} 18. Ne2 {[%clk 0:02:30]}  d5 {[%clk 0:01:54]} 19. cxd5 {[%clk 0:02:23]}  Bxd5 {[%clk 0:01:54]} 20. Rxe8+ {[%clk 0:02:17]}  Rxe8 {[%clk 0:01:53]} 21. Bxd4 {[%clk 0:01:52]}  Bxg2 {[%clk 0:01:42]} 22. Kxg2 {[%clk 0:01:52]}  Qd5+ {[%clk 0:01:38]} 23. f3 {[%clk 0:01:45]}  cxd4 {[%clk 0:01:37]} 24. Nc3 {[%clk 0:01:36]}  Qd7 {[%clk 0:01:31]} 25. Rxe8+ {[%clk 0:01:36]}  Qxe8 {[%clk 0:01:32]} 26. Ne4 {[%clk 0:01:37]}  f5 {[%clk 0:01:29]} 27. Nf2 {[%clk 0:01:36]}  Qc6 {[%clk 0:01:25]} 28. Qe2 {[%clk 0:01:33]}  Bf6 {[%clk 0:01:21]} 29. Nd3 {[%clk 0:01:32]}  Kf7 {[%clk 0:01:19]} 30. h3 {[%clk 0:01:28]}  a6 {[%clk 0:01:16]} 31. g4 {[%clk 0:01:28]}  Qc3 {[%clk 0:01:07]} 32. Kg3 {[%clk 0:01:23]}  h6 {[%clk 0:01:07]} 33. h4 {[%clk 0:01:19]}  Qc8 {[%clk 0:00:58]} 34. Qe1 {[%clk 0:01:02]}  Qc3 {[%clk 0:00:55]} 35. Qe2 {[%clk 0:01:02]}  Qc8 {[%clk 0:00:55]} 36. g5 {[%clk 0:00:50]}  hxg5 {[%clk 0:00:55]} 37. fxg5 {[%clk 0:00:50]}  Qc7+ {[%clk 0:00:55]} 38. f4 {[%clk 0:00:49]}  Bg7 {[%clk 0:00:55]} 39. h5 {[%clk 0:00:50]}  gxh5 {[%clk 0:00:53]} 40. Qxh5+ {[%clk 0:00:49]}  Kf8 {[%clk 0:00:53]} 41. Qg6 {[%clk 0:00:45]}  Qd7 {[%clk 0:00:53]} 42. a4 {[%clk 0:00:44]}  Qd5 {[%clk 0:00:52]} 43. Qb6 {[%clk 0:00:41]}  Kg8 {[%clk 0:00:49]} 44. g6 {[%clk 0:00:32]}  Qe4 {[%clk 0:00:43]} 45. Qd8+ {[%clk 0:00:30]}  Bf8 {[%clk 0:00:44]} 46. Ne5 {[%clk 0:00:30]}  Qe1+ {[%clk 0:00:43]} 47. Kg2 {[%clk 0:00:26]}  Qe2+ {[%clk 0:00:42]} 48. Kg3 {[%clk 0:00:27]}  Qe1+ {[%clk 0:00:41]} 49. Kg2 {[%clk 0:00:27]}  Qe2+ {[%clk 0:00:39]} 50. Kg3 {[%clk 0:00:27]}  Qe1+ {[%clk 0:00:34]} 1/2-1/2


[Site "https://www.chess.com"]